bitfinex/quotes_ETHUSD_20220106
["timestamp","ask_amount","ask_price","bid_price","bid_amount"]
[1641449342860,5.27e-06,3441.6,3441.1,15.68882825]
[1641449343060,5.27e-06,3441.6,3441.1,15.98882825]
[1641449343061,5.8117,3441.5,3441.1,15.98882825]
[1641449343262,5.8117,3441.5,3441.3,1.91892591]
[1641449343518,9e-05,3441.5,3441.2,0.00226842]
[1641449343714,9e-05,3441.5,3441.4,15.68816313]
[1641449343916,7.7408,3442.8,3442.1,0.5809834]
[1641449344120,3.843,3442.8,3442.1,0.5809834]
[1641449344319,0.00625266,3442.7,3442.1,0.5809834]
[1641449344518,0.00625266,3442.7,3442.5,1.62422612]
[1641449344718,0.00568424,3442.6,3442.5,1.62422612]
[1641449344918,0.00568424,3442.6,3442.1,0.5809834]
[1641449345118,0.00568424,3442.6,3441.8,1.1619668]
[1641449345319,0.00511581,3442.5,3441.8,1.1619668]
[1641449345518,0.00511581,3442.5,3441.9,0.01217102]
[1641449345718,0.00454739,3442.4,3441.9,0.01217102]
[1641449346121,0.00397897,3442.3,3442.0,2.47882154]
[1641449346319,0.00397897,3442.3,3442.1,0.5809832]
[1641449346518,7.4568,3443.1,3442.1,0.5809832]
[1641449346519,0.00341054,3442.2,3442.1,0.5809832]
[1641449346719,16.86259099,3443.5,3442.1,12.75]
[1641449346919,0.345,3443.4,3442.1,12.75]
[1641449347119,0.00454739,3443.0,3442.1,12.75]
[1641449347353,1.65559202,3443.0,3442.1,12.75]
[1641449347553,17.195,3443.4,3442.0,1.75259154]
[1641449347554,0.00397897,3442.9,3442.0,1.75259154]
[1641449347957,0.00341054,3442.8,3442.0,1.75259154]
[1641449348357,0.00284212,3442.7,3442.0,1.75259154]
[1641449348660,0.0022737,3442.6,3442.0,1.75259154]
[1641449349057,0.00170527,3442.5,3442.0,1.75259154]
[1641449349462,0.00113685,3442.4,3442.0,1.75259154]
[1641449350863,0.0135894,3442.4,3442.1,0.00100887]
[1641449354514,1.77771983,3442.3,3442.1,0.00100887]
[1641449354759,1.08199154,3444.2,3442.2,16.15]
[1641449354962,5.8086,3444.1,3443.9,0.01212798]
[1641449355162,1.32480854,3444.5,3444.0,17.06659354]
[1641449355360,8.54e-06,3444.5,3444.4,15.66211682]
[1641449355759,6.11434744,3444.7,3444.4,17.27697197]
[1641449355960,6.11434744,3444.7,3444.6,16.95649914]
[1641449356160,6.11434744,3444.7,3444.6,15.65]
[1641449356361,6.11434744,3444.7,3444.4,1.61485515]
[1641449356564,16.85,3446.0,3444.3,1.45138]
[1641449356761,0.01250532,3444.6,3444.3,1.45138]
[1641449357161,0.01193689,3444.5,3444.3,1.45138]
[1641449357364,0.01193689,3444.5,3443.7,1.45164]
[1641449357663,1.70920104,3444.4,3443.8,1.88197921]
[1641449357861,0.01136847,3444.4,3443.9,0.50176965]
[1641449358062,0.01080005,3444.3,3443.9,0.50176965]
[1641449358504,0.01023162,3444.2,3443.9,0.50176965]
[1641449358906,2.00819746,3444.7,3444.1,0.50176965]
[1641449359511,2.00819746,3444.7,3443.9,0.50176965]
[1641449360514,5.8067,3444.6,3443.9,0.50176965]
[1641449360813,0.00227369,3444.5,3443.9,0.50176965]
[1641449361213,0.00170527,3444.4,3443.9,0.50176965]
[1641449361714,5.8067,3444.6,3444.0,0.00288689]
[1641449361715,0.00113685,3444.3,3444.0,0.00288689]
[1641449362112,0.00227369,3444.5,3444.0,0.00288689]
[1641449362553,0.00170527,3444.4,3444.0,0.00288689]
[1641449362954,0.00113685,3444.3,3444.0,0.00288689]
[1641449363157,0.00113685,3444.3,3444.1,0.50176965]
[1641449363357,0.00227369,3444.5,3444.1,0.50176965]
[1641449363556,0.00227369,3444.5,3444.2,0.50176965]
[1641449363756,0.00170527,3444.4,3444.2,0.50176965]
[1641449364162,0.00113685,3444.3,3444.2,16.15176965]
[1641449364760,0.00113685,3444.3,3444.2,16.65983455]
[1641449367721,0.00113685,3444.3,3444.2,0.50176965]
[1641449368220,3.25113685,3444.3,3444.2,0.50176965]
[1641449368421,0.00113685,3444.3,3444.2,0.50176965]
[1641449368820,2.11280929,3444.3,3444.2,0.50176965]
[1641449372362,5.64213928,3444.3,3444.2,0.50465629]
[1641449372561,18.96280929,3444.3,3444.2,0.50465629]
[1641449372761,2.11280929,3444.3,3444.2,0.50465629]
[1641449372961,7.91950929,3444.3,3444.2,0.50465629]
[1641449373164,28.30805862,3444.3,3444.2,0.50465629]
[1641449373366,24.76950929,3444.3,3444.2,0.50465629]
[1641449373805,7.91950929,3444.3,3444.2,0.50465629]
[1641449374510,5.80783685,3444.3,3444.2,0.50465629]
[1641449375711,5.80783685,3444.3,3444.2,2.13802698]
[1641449376609,5.80783685,3444.3,3444.2,0.50465629]
[1641449377012,5.80783685,3444.3,3444.2,4.10465629]
[1641449378055,5.80783685,3444.3,3444.2,6.12903683]
[1641449379061,5.80783685,3444.3,3444.2,18.17903683]
[1641449379460,5.80783685,3444.3,3444.2,6.12903683]
[1641449379963,5.80783685,3444.3,3444.2,14.07903683]
[1641449381019,5.80783685,3444.3,3444.2,18.51346267]
[1641449381419,6.17,3446.0,3444.8,0.50176965]
[1641449381620,6.17,3446.0,3445.1,0.50176965]
[1641449381820,6.17,3446.0,3445.3,0.50176965]
[1641449381821,0.0073895,3445.6,3445.3,0.50176965]
[1641449382222,0.00682108,3445.5,3445.3,0.50176965]
[1641449382621,0.00625265,3445.4,3445.3,0.50176965]
[1641449384026,0.00625265,3445.4,3445.3,8.50235449]
[1641449384763,0.00625265,3445.4,3445.3,8.53749695]
[1641449384963,0.00625265,3445.4,3445.3,18.18749695]
[1641449385965,0.00625265,3445.4,3445.3,18.15235449]
[1641449386166,0.00625265,3445.4,3445.3,2.50235449]
[1641449386365,6.17625265,3445.4,3445.3,2.50235449]
[1641449386866,6.17625265,3445.4,3445.3,9.50235449]
[1641449388912,6.17625265,3445.4,3445.3,2.50235449]
[1641449390024,6.17625265,3445.4,3445.3,7.05235449]
[1641449390215,0.00625265,3445.4,3445.3,7.05235449]
[1641449392255,0.00625265,3445.4,3445.3,2.50235449]
[1641449392859,0.00625265,3445.4,3445.3,7.60235449]
[1641449393458,0.00625265,3445.4,3445.3,7.60508663]
[1641449393964,0.00625265,3445.4,3445.3,2.50508663]
[1641449396009,0.00625265,3445.4,3445.3,6.90508663]
[1641449397818,0.00625265,3445.4,3445.3,15.55508663]
[1641449398614,0.00625265,3445.4,3445.3,6.90508663]
[1641449399858,0.00625265,3445.4,3445.3,18.15508663]
[1641449400063,5.265e-05,3445.4,3445.3,17.46684455]
[1641449400261,3.93654358,3447.3,3445.7,0.50176965]
[1641449400465,5.803,3447.2,3445.7,0.80176965]
[1641449400661,0.00682109,3446.6,3445.8,0.53689313]
[1641449401061,0.00625266,3446.5,3445.8,0.53689313]
[1641449401262,0.00625266,3446.5,3446.1,0.50176965]
[1641449401474,0.00568424,3446.4,3446.1,0.50176965]
[1641449401867,0.00511581,3446.3,3446.1,0.50176965]
[1641449402266,0.00454739,3446.2,3446.1,0.50176965]
[1641449402866,0.00454739,3446.2,3446.1,6.85176965]
[1641449403743,0.00454739,3446.2,3446.1,10.35176965]
[1641449404947,0.00454739,3446.2,3446.1,6.85176965]
[1641449405848,0.00454739,3446.2,3446.1,0.50176965]
[1641449406650,7.50454739,3446.2,3446.1,0.50176965]
[1641449409667,3.60454739,3446.2,3446.1,0.50176965]
[1641449410870,0.01212737,3446.4,3446.1,0.50176965]
[1641449411110,5.803,3446.3,3446.1,0.50176965]
[1641449415876,5.803,3446.3,3445.6,1.4142548]
[1641449415877,10.803,3446.3,3446.2,0.50176965]
[1641449421330,10.797,3446.3,3446.2,0.50176965]
[1641449424369,14.29860639,3446.3,3446.2,0.50176965]
[1641449425769,14.29860639,3446.3,3446.1,0.00261984]
[1641449426008,3.44650759,3446.2,3446.1,0.00261984]
[1641449426412,3.42832216,3446.2,3446.1,0.00261984]
[1641449427109,10.797,3446.3,3446.1,0.00261984]
[1641449431974,10.797,3446.3,3446.2,0.50176965]
[1641449432173,10.797,3446.3,3446.2,13.45176965]
[1641449432973,10.797,3446.3,3446.2,0.50176965]
[1641449433174,10.797,3446.3,3446.1,0.64471984]
[1641449433175,10.797,3446.3,3446.1,0.00261984]
[1641449438368,10.797,3446.3,3446.1,0.50438949]
[1641449443315,10.797,3446.3,3446.2,6.20176965]
[1641449443712,10.797,3446.3,3446.2,0.50176965]
[1641449444315,10.797,3446.3,3446.2,3.95176965]
[1641449445167,10.797,3446.3,3446.2,3.99138224]
[1641449445366,10.797,3446.3,3446.2,15.84138224]
[1641449445966,10.797,3446.3,3446.2,15.54138224]
[1641449448273,10.797,3446.3,3446.2,3.99138224]
[1641449449318,10.797,3446.3,3446.2,12.19138224]
[1641449449718,10.797,3446.3,3446.2,12.1899953]
[1641449452669,10.797,3446.3,3446.2,0.50176965]
[1641449452870,10.797,3446.3,3446.2,0.50437546]
[1641449453672,12.55597781,3446.3,3446.2,0.50437546]
[1641449453872,12.55597781,3446.3,3446.2,0.53475469]
[1641449454074,12.55597781,3446.3,3446.2,0.50437546]
[1641449454275,12.55597781,3446.3,3446.2,12.20437546]
[1641449454474,12.55597781,3446.3,3446.2,12.23900006]
[1641449454676,10.797,3446.3,3446.2,12.20437546]
[1641449455077,10.797,3446.3,3446.2,12.24379087]
[1641449455274,10.797,3446.3,3446.2,12.20437546]
[1641449455475,10.797,3446.3,3446.2,12.24096609]
[1641449455677,10.797,3446.3,3446.2,12.23875323]
[1641449457119,10.797,3446.3,3446.2,14.4775174]
[1641449459767,10.797,3446.3,3446.2,12.23875323]
[1641449460378,10.797,3446.3,3446.2,12.20437546]
[1641449460572,10.797,3446.3,3446.2,0.50437546]
[1641449461172,10.797,3446.3,3446.2,7.50437546]
[1641449467467,10.797,3446.3,3446.2,0.50437546]
[1641449468478,7.35,3446.2,3446.0,0.1]
[1641449468676,17.17596974,3446.1,3444.3,6.37492277]
[1641449468878,0.01271888,3445.5,3444.3,6.37492277]
[1641449469076,0.01271888,3445.5,3444.4,0.01023162]
[1641449469279,2.06411693,3444.7,3444.4,0.01023162]
[1641449470277,2.06411693,3444.7,3444.2,0.01136847]
[1641449470681,2.06411693,3444.7,3443.7,0.01421059]
[1641449470879,1.59700395,3444.1,3443.7,0.01421059]
[1641449471725,1.59700395,3444.1,3444.0,0.72585]
[1641449472124,1.59700395,3444.1,3444.0,16.18835531]
[1641449472325,1.59700395,3444.1,3444.0,0.73835531]
[1641449472525,1.59700395,3444.1,3444.0,0.01250531]
[1641449472727,12.6,3444.0,3443.1,0.04882399]
[1641449472925,0.1635593,3443.9,3443.1,0.04882399]
[1641449473125,2.46990395,3444.1,3443.2,0.00454739]
[1641449473328,16.85,3444.0,3443.2,0.00454739]
[1641449473525,1.59700395,3444.1,3443.2,0.00454739]
[1641449473829,3.6022,3445.3,3444.3,1.12956374]
[1641449474030,1.2323,3445.4,3443.9,0.775]
[1641449474031,5.8064,3444.6,3443.9,0.775]
[1641449474328,0.00170527,3444.3,3443.9,0.775]
[1641449474772,0.00113684,3444.2,3443.9,0.775]
[1641449475173,0.00284211,3444.5,3443.6,0.03478043]
[1641449475374,0.00284211,3444.5,3443.5,0.01212144]
[1641449475571,0.00227369,3444.4,3443.7,0.00170528]
[1641449475773,0.00227369,3444.4,3444.0,0.72584]
[1641449475975,0.00284211,3444.5,3444.0,0.72584]
[1641449476272,0.00227369,3444.4,3443.7,0.00170528]
[1641449476673,1.75967554,3444.1,3443.7,0.00170528]
[1641449477477,0.00284211,3444.5,3444.1,1.45145]
[1641449477672,5.8064,3444.6,3444.5,16.67595418]
[1641449478272,5.4777,3444.6,3444.5,16.67595418]
[1641449478523,5.4777,3444.6,3444.5,17.57927799]
[1641449478720,5.4777,3444.6,3444.5,19.36193878]
[1641449478923,5.4777,3444.6,3444.5,16.5206]
[1641449479127,5.4777,3444.6,3444.5,0.8706]
[1641449479926,5.4777,3444.6,3444.5,4.8706]
[1641449480329,10.4777,3444.6,3444.5,4.8706]
[1641449482368,10.4777,3444.6,3444.5,0.8706]
[1641449484483,10.4777,3444.6,3444.5,0.87315495]
[1641449484884,10.4777,3444.6,3444.5,6.87315495]
[1641449485685,10.4777,3444.6,3444.5,0.87315495]
[1641449486125,27.3277,3444.6,3444.5,0.87315495]
[1641449486328,27.3277,3444.6,3444.2,0.00170528]
[1641449486329,9.6,3444.5,3444.2,0.00170528]
[1641449486729,10.4777,3444.6,3442.9,0.00909477]
[1641449486928,1.85735822,3443.2,3442.9,0.00909477]
[1641449487127,10.556,3444.6,3442.9,0.00909477]
[1641449487332,7.4529,3444.6,3442.9,0.00909477]
[1641449487528,7.4529,3444.6,3442.8,0.0096632]
[1641449487729,7.4529,3444.6,3442.8,1.4616832]
[1641449488130,2.10676786,3443.7,3442.9,0.00909477]
[1641449488330,2.0990369,3443.7,3442.9,0.00909477]
[1641449489330,16.85,3444.5,3442.9,0.00909477]
[1641449489331,1.8183454,3443.5,3442.9,0.00909477]
[1641449489532,16.7855,3444.6,3442.8,0.0096632]
[1641449489966,16.85,3444.5,3442.8,0.0096632]
[1641449490171,16.7855,3444.6,3442.8,0.0096632]
[1641449490567,1.83181009,3443.5,3442.8,0.0096632]
[1641449493374,1.83181009,3443.5,3443.0,0.72606]
[1641449493820,16.7855,3444.6,3443.3,1.28817988]
[1641449494030,12.9311,3444.6,3443.3,1.28817988]
[1641449494230,12.9311,3444.6,3443.4,0.00625266]
[1641449494428,7.4529,3444.6,3443.9,1.34400514]
[1641449494628,7.4529,3444.6,3444.0,3.33946984]
[1641449494629,5.0,3444.6,3444.0,3.33946984]
[1641449494828,5.0,3444.6,3444.0,0.00284211]
[1641449495028,6.60624539,3444.6,3443.9,3.09359379]
[1641449495329,0.00227369,3444.5,3444.1,0.00230635]
[1641449495728,0.00170527,3444.4,3444.1,0.00230635]
[1641449496130,0.00113685,3444.3,3444.1,0.00230635]
[1641449496733,0.00113685,3444.3,3444.1,0.72812635]
[1641449502824,0.00113685,3444.3,3444.1,0.00230635]
[1641449504770,1.88117903,3444.2,3444.1,0.00230635]
[1641449505569,1.88117903,3444.2,3444.1,6.30230635]
[1641449506568,1.88117903,3444.2,3444.1,0.00230635]
[1641449507568,1.88117903,3444.2,3444.1,5.00230635]
[1641449509029,1.88117903,3444.2,3444.1,5.03662778]
[1641449509226,1.88117903,3444.2,3444.1,5.00230635]
[1641449510427,6.88117903,3444.2,3444.1,5.00230635]
[1641449514178,6.88117903,3444.2,3444.1,5.50932606]
[1641449517231,5.0,3444.2,3444.1,5.50932606]
[1641449517433,5.0,3444.2,3444.1,15.20932606]
[1641449518130,1.06270237,3444.2,3444.1,15.20932606]
[1641449518333,1.06270237,3444.2,3444.1,17.29629678]
[1641449518530,1.06270237,3444.2,3444.1,15.20932606]
[1641449518731,1.06270237,3444.2,3444.1,5.50932606]
[1641449519532,1.06270237,3444.2,3444.1,12.80932606]
[1641449519971,1.06270237,3444.2,3444.1,5.50932606]
[1641449520374,1.06270237,3444.2,3444.1,10.45932606]
[1641449521872,1.06270237,3444.2,3444.1,5.50932606]
[1641449522675,2.82949044,3444.2,3444.1,5.50932606]
[1641449523075,2.82949044,3444.2,3444.1,5.30932606]
[1641449525529,1.06270237,3444.2,3444.1,5.30932606]
[1641449526335,3.685e-05,3444.3,3444.2,1.44801734]
[1641449526528,1.71243578,3446.3,3444.2,1.44801734]
[1641449526529,1.71243578,3446.3,3445.3,15.35701971]
[1641449526730,1.71243578,3446.3,3445.3,16.00291971]
[1641449526927,15.7781,3446.7,3445.3,16.00291971]
[1641449526928,1.71243578,3446.5,3445.3,16.00291971]
[1641449527376,1.71243578,3446.5,3445.3,16.00482216]
[1641449527779,15.7781,3446.7,3445.3,16.00482216]
[1641449527978,15.7781,3446.7,3445.3,15.35892216]
[1641449528280,2.18883752,3445.6,3445.3,15.35892216]
[1641449529081,2.18883752,3445.6,3445.3,0.50892216]
[1641449529283,2.18883752,3445.6,3445.3,10.05892216]
[1641449530585,0.00682108,3445.5,3445.3,10.05892216]
[1641449531024,0.00625265,3445.4,3445.3,10.05892216]
[1641449534631,0.00625265,3445.4,3445.3,0.50892216]
[1641449534872,0.00625265,3445.4,3445.3,0.00190245]
[1641449537976,0.00622369,3445.4,3445.3,0.00190245]
[1641449542873,6.17,3446.1,3445.3,1.17752216]
[1641449543077,6.17,3446.1,3445.7,0.50701971]
[1641449543272,0.00341054,3446.0,3445.7,0.50701971]
[1641449543671,0.00284212,3445.9,3445.7,2.31539977]
[1641449544076,0.0022737,3445.8,3445.7,2.31539977]
[1641449544278,0.0022737,3445.8,3445.7,12.91539977]
[1641449546226,0.0022737,3445.8,3445.7,17.96539977]
[1641449546623,0.0022737,3445.8,3445.7,12.91539977]
[1641449547225,0.0022737,3445.8,3445.7,17.96539977]
[1641449547427,0.0022737,3445.8,3445.7,18.00056979]
[1641449548728,0.0022737,3445.8,3445.7,18.00241608]
[1641449549330,1.1697,3446.7,3445.7,18.94291608]
[1641449549531,1.1697,3446.7,3445.9,0.50701971]
[1641449549773,0.00454739,3446.6,3446.3,0.50701971]
[1641449549973,0.00454739,3446.6,3446.5,16.15701971]
[1641449550179,7.88243578,3447.7,3446.5,18.66774799]
[1641449550473,7.88243578,3447.7,3447.3,0.50701971]
[1641449550673,7.88243578,3447.7,3447.3,1.14791971]
[1641449551073,6.17,3447.7,3447.3,1.14791971]
[1641449551878,6.17,3447.7,3447.4,0.50701971]
[1641449557028,6.17,3447.7,3447.5,0.50701971]
[1641449557686,6.17,3447.7,3445.4,0.13819997]
[1641449557687,0.35764136,3447.6,3445.6,3.20923096]
[1641449557887,0.35764136,3447.6,3445.4,0.13819997]
[1641449557888,0.01282807,3446.7,3445.4,0.13819997]
[1641449558487,0.01282807,3446.7,3445.6,1.06062883]
[1641449558888,2.14260894,3446.7,3446.0,1.75215282]
[1641449559092,1.1704,3447.2,3446.2,1.05522949]
[1641449559493,0.0073895,3447.1,3446.2,1.05522949]
[1641449559891,0.00682108,3447.0,3446.2,1.05522949]
[1641449560190,0.00625266,3446.9,3446.8,1.62527373]
[1641449560490,0.00625266,3446.9,3446.1,0.1705]
[1641449560688,0.00625266,3446.9,3446.1,0.72535]
[1641449560889,0.00568423,3446.8,3446.2,0.03611159]
[1641449561127,0.00568423,3446.8,3446.1,0.93245]
[1641449561320,0.00511581,3446.7,3446.1,0.93245]
[1641449561521,0.00511581,3446.7,3446.5,1.6098504]
[1641449561722,0.00454739,3446.6,3446.5,1.6098504]
[1641449561919,0.00454739,3446.6,3446.5,9.5098504]
[1641449562121,0.0073895,3446.6,3446.5,9.5098504]
[1641449563021,0.0073895,3446.6,3446.5,13.5098504]
[1641449565876,0.0073895,3446.6,3446.5,17.2598504]
[1641449567077,0.0073895,3446.6,3446.5,13.5098504]
[1641449567878,0.0073895,3446.6,3446.5,17.2598504]
[1641449568923,0.0073895,3446.6,3446.5,17.29502116]
[1641449569728,5.1535,3447.6,3446.6,15.65]
[1641449569931,3.9654,3447.6,3447.0,1.14823]
[1641449570230,0.0022737,3447.5,3447.1,2.72505377]
[1641449570530,0.00170527,3447.4,3447.1,3.70285377]
[1641449570927,0.00113685,3447.3,3447.1,3.70285377]
[1641449571330,0.00397897,3447.8,3447.1,3.70285377]
[1641449571728,0.00341054,3447.7,3447.1,3.70285377]
[1641449572279,0.00284212,3447.6,3447.1,3.70285377]
[1641449572474,0.00284212,3447.6,3447.1,2.72505377]
[1641449572675,0.00397897,3447.8,3447.1,2.72505377]
[1641449573174,0.00341054,3447.7,3447.1,2.72505377]
[1641449573575,0.00284212,3447.6,3447.1,2.72505377]
[1641449573773,0.00284212,3447.6,3447.1,1.72045296]
[1641449573979,0.00397897,3447.8,3447.1,1.72045296]
[1641449574385,0.00341054,3447.7,3447.1,1.72045296]
[1641449574681,0.00284212,3447.6,3447.1,1.72045296]
[1641449575079,0.00397897,3447.8,3447.1,1.72045296]
[1641449575479,0.00341054,3447.7,3447.1,1.72045296]
[1641449575681,0.00341054,3447.7,3447.6,9.73437446]
[1641449575881,0.44218357,3447.9,3447.6,9.73437446]
[1641449576321,0.00397897,3447.8,3447.7,13.13979557]
[1641449576624,0.00397897,3447.8,3447.7,2.08979557]
[1641449576821,0.00397897,3447.8,3447.7,8.68979557]
[1641449577025,0.00397897,3447.8,3447.7,2.08979557]
[1641449577828,0.00397897,3447.8,3447.7,6.78979557]
[1641449578831,0.00397897,3447.8,3447.7,11.68979557]
[1641449579770,1.15920224,3448.7,3448.5,1.18267129]
[1641449579973,3.2034,3449.3,3448.6,1.8715601]
[1641449580174,0.01237989,3449.5,3448.6,1.8715601]
[1641449580570,0.00909477,3449.4,3448.6,1.8715601]
[1641449580971,0.00852635,3449.3,3448.7,0.00137667]
[1641449581372,0.00795793,3449.2,3448.7,0.00137667]
[1641449581774,0.0073895,3449.1,3448.7,0.00137667]
[1641449582173,0.00682108,3449.0,3448.7,0.00137667]
[1641449582580,0.00625265,3448.9,3448.7,0.00137667]
[1641449582976,0.00568423,3448.8,3448.7,0.00137667]
[1641449583376,0.01080004,3448.8,3448.7,0.00137667]
[1641449583622,0.01080004,3448.8,3448.7,3.50949917]
[1641449583821,0.01080004,3448.8,3448.7,15.65137667]
[1641449584227,13.84354481,3450.0,3449.6,0.1674]
[1641449584428,13.84354481,3450.0,3449.7,1.73733801]
[1641449584630,0.00113685,3449.9,3449.7,1.73733801]
[1641449591821,0.00113685,3449.9,3449.8,18.8482822]
[1641449592024,12.64936585,3450.0,3449.8,18.8482822]
[1641449592025,12.3901027,3450.0,3449.9,15.68139652]
[1641449592222,5.2855027,3450.0,3449.9,15.98139652]
[1641449592422,6.17,3451.0,3450.0,15.65]
[1641449592623,6.17,3451.0,3450.8,1.00209266]
[1641449592823,0.00568423,3450.9,3450.8,2.93589759]
[1641449593423,0.00568423,3450.9,3450.8,0.8489]
[1641449593623,0.00568423,3450.9,3449.8,0.00127148]
[1641449593823,0.00568423,3450.9,3450.2,0.01151859]
[1641449594027,0.00511581,3450.8,3450.2,0.01151859]
[1641449594426,0.00454739,3450.7,3450.2,0.01151859]
[1641449594627,0.00454739,3450.7,3450.3,2.10823862]
[1641449594877,0.00397896,3450.6,3450.2,0.01151859]
[1641449595274,0.00341054,3450.5,3449.8,0.00127148]
[1641449595680,0.00284212,3450.4,3450.1,1.7659576]
[1641449596077,0.00227369,3450.3,3450.1,1.7659576]
[1641449596475,0.00170527,3450.2,3450.1,1.7659576]
[1641449596677,0.00170527,3450.2,3450.1,8.0159576]
[1641449597376,6.18204615,3451.0,3450.1,1.7659576]
[1641449597377,6.12810527,3451.0,3450.1,1.7659576]
[1641449597777,6.17,3450.4,3450.1,1.7659576]
[1641449597980,6.17,3450.4,3449.8,0.00127148]
[1641449598379,6.17,3450.4,3449.9,0.00170527]
[1641449599232,6.17,3450.4,3450.1,1.65941169]
[1641449600231,9.47161581,3451.1,3450.1,2.87094111]
[1641449600432,0.00511581,3451.1,3450.1,2.87094111]
[1641449600634,0.00454739,3451.0,3450.1,2.87094111]
[1641449600835,1.69105291,3451.0,3450.1,1.65941169]
[1641449601035,1.68650552,3451.0,3450.1,1.65941169]
[1641449601833,0.00511581,3451.1,3450.5,1.34030182]
[1641449602035,0.00511581,3451.1,3450.6,0.3]
[1641449602281,5.0532,3452.4,3450.6,0.3]
[1641449602282,0.00454739,3451.0,3450.6,0.33946083]
[1641449602481,6.17,3452.5,3450.6,0.33946083]
[1641449602482,6.17,3452.5,3450.7,32.85756826]
[1641449602685,6.17,3452.5,3451.3,0.27491549]
[1641449602881,0.0073895,3452.3,3451.6,0.3620513]
[1641449603282,0.00682108,3452.2,3451.7,0.645]
[1641449603483,0.00682108,3452.2,3451.8,1.09167593]
[1641449603682,0.07118739,3453.6,3453.1,1.3531052]
[1641449603882,0.07118739,3453.6,3453.1,0.8527]
[1641449604083,0.07118739,3453.6,3453.3,1.62293287]
[1641449604281,0.07118739,3453.6,3453.1,0.8527]
[1641449604483,14.3123121,3453.2,3451.9,0.00113685]
[1641449604682,3.8113,3453.1,3451.9,0.00113685]
[1641449604883,3.8113,3453.1,3451.7,1.22666107]
[1641449604884,5.01727162,3453.1,3451.7,1.22666107]
[1641449605082,5.01727162,3453.1,3451.7,1.22438737]
[1641449605281,0.07118739,3453.0,3452.6,1.8802768]
[1641449605681,0.00454738,3452.9,3452.6,1.8802768]
[1641449606131,0.00397896,3452.8,3452.6,1.8802768]
[1641449606530,0.00341054,3452.7,3452.6,1.8802768]
[1641449607535,0.00341054,3452.7,3452.6,6.3802768]
[1641449607737,0.00341054,3452.7,3452.6,1.8802768]
[1641449608537,0.00341054,3452.7,3452.6,6.4302768]
[1641449609437,0.00341054,3452.7,3452.6,10.4302768]
[1641449609876,0.00341054,3452.7,3452.6,6.4302768]
[1641449610478,0.00341054,3452.7,3452.6,9.7802768]
[1641449611177,0.00341054,3452.7,3452.6,6.4302768]
[1641449611380,0.00341054,3452.7,3452.6,5.0802768]
[1641449612384,0.00341054,3452.7,3452.6,9.7302768]
[1641449612783,0.00341054,3452.7,3452.6,1.8802768]
[1641449612985,0.00341054,3452.7,3451.8,0.032585]
[1641449613189,0.00341054,3452.7,3451.8,0.00170527]
[1641449613385,0.00284211,3452.6,3451.9,0.00113685]
[1641449613624,0.00284211,3452.6,3451.7,0.0022737]
[1641449613837,2.18295783,3453.2,3451.7,0.0022737]
[1641449613838,0.00227369,3452.5,3451.7,0.0022737]
[1641449614230,0.00170527,3452.4,3452.2,1.59825594]
[1641449614630,0.00170527,3452.4,3451.7,0.0022737]
[1641449614631,0.00113684,3452.3,3451.7,0.0022737]
[1641449615031,0.00284211,3452.6,3451.3,0.00454739]
[1641449615231,0.00284211,3452.6,3451.2,0.00511582]
[1641449615433,0.00227369,3452.5,3451.2,0.00511582]
[1641449615632,0.00227369,3452.5,3451.8,1.74156247]
[1641449615832,0.01150728,3452.7,3451.8,1.74156247]
[1641449615833,0.00170527,3452.4,3451.8,1.74156247]
[1641449616034,0.00170527,3452.4,3451.9,0.00113685]
[1641449616233,0.00113684,3452.3,3451.9,0.00113685]
[1641449616636,0.00284211,3452.6,3451.9,0.00113685]
[1641449617035,0.00227369,3452.5,3451.9,0.00113685]
[1641449617591,0.00170527,3452.4,3451.9,0.00113685]
[1641449617993,0.00113684,3452.3,3451.9,0.00113685]
[1641449618395,0.00284211,3452.6,3451.9,0.00113685]
[1641449618794,0.00227369,3452.5,3451.9,0.00113685]
[1641449619205,0.00170527,3452.4,3451.9,0.00113685]
[1641449619598,0.00113684,3452.3,3451.9,0.00113685]
[1641449619999,0.00284211,3452.6,3451.9,0.00113685]
[1641449620298,0.00227369,3452.5,3451.9,0.00113685]
[1641449620699,0.00170527,3452.4,3451.9,0.00113685]
[1641449621136,0.00113684,3452.3,3451.9,0.00113685]
[1641449621539,2.00409982,3452.7,3451.9,0.00113685]
[1641449621540,0.00284211,3452.6,3451.9,0.00113685]
[1641449621937,0.00227369,3452.5,3451.9,0.00113685]
[1641449622338,0.00170527,3452.4,3451.9,0.00113685]
[1641449622637,0.00113684,3452.3,3451.9,0.00113685]
[1641449622937,0.00284211,3452.6,3451.9,0.00113685]
[1641449623143,0.72442,3452.5,3451.9,0.00113685]
[1641449623441,2.00409982,3452.7,3451.2,0.00511582]
[1641449623442,15.66203953,3452.0,3451.2,0.00511582]
[1641449623839,0.07118739,3451.9,3450.5,0.00909478]
[1641449624246,0.07118739,3451.9,3450.9,2.01317561]
[1641449624247,0.7246217,3451.6,3450.9,2.01317561]
[1641449624640,0.7246217,3451.6,3451.0,0.00625266]
[1641449627281,4.33439854,3451.6,3451.0,0.00625266]
[1641449627684,0.7246217,3451.6,3451.0,0.00625266]
[1641449628932,0.7247,3451.4,3451.0,0.00625266]
[1641449629137,0.724695,3451.3,3450.7,0.00795793]
[1641449629335,0.79588239,3451.3,3450.7,0.00795793]
[1641449630537,0.72473,3451.2,3450.7,0.00795793]
[1641449630736,0.79588239,3451.3,3450.7,0.00795793]
[1641449630737,0.07118739,3451.3,3450.7,0.00795793]
[1641449630942,16.11208739,3451.9,3450.7,0.00795793]
[1641449631137,16.0409,3451.9,3450.7,0.00795793]
[1641449631535,16.0409,3451.9,3451.7,2.17363995]
[1641449631738,5.7941,3451.8,3451.7,2.17363995]
[1641449632977,10.7941,3451.8,3451.7,2.17363995]
[1641449634386,10.7941,3451.8,3451.7,3.3721865]
[1641449634788,10.7941,3451.8,3451.7,2.17363995]
[1641449635186,10.7941,3451.8,3451.7,8.07363995]
[1641449635586,10.7941,3451.8,3451.7,2.17363995]
[1641449636229,10.7941,3451.8,3451.7,6.07363995]
[1641449636630,10.7941,3451.8,3451.7,6.10448644]
[1641449636832,10.7941,3451.8,3451.7,6.46108644]
[1641449637230,10.7941,3451.8,3451.7,18.16108644]
[1641449638135,0.00284211,3452.6,3451.8,1.03073293]
[1641449638335,0.00284211,3452.6,3452.1,0.72405]
[1641449638535,0.00227369,3452.5,3452.3,1.16495247]
[1641449638736,0.00227369,3452.5,3452.3,1.19956521]
[1641449638936,0.00170527,3452.4,3452.3,1.19956521]
[1641449639137,0.00170527,3452.4,3452.3,3.42165483]
[1641449639984,0.00170527,3452.4,3452.3,3.38704209]
[1641449640586,0.00170527,3452.4,3452.3,3.4224446]
[1641449640985,0.00170527,3452.4,3452.3,2.22208962]